[Event "45th FIDE Olympiad 2024"]
[Site "Budapest"]
[Date "2024.09.12"]
[Round "2.76"]
[White "Amilal, Munkhdalai"]
[Black "Vykouk, Jan"]
[Result "*"]
[ECO "B51"]
[WhiteElo "2374"]
[BlackElo "2483"]
[Annotator "TA"]
[PlyCount "98"]
[EventDate "2024.09.05"]
[EventType "team-tourn"]
[EventCountry "HUN"]
[SourceTitle "playchess.com"]
[Source "ChessBase"]
[SourceQuality "1"]
[WhiteTeam "Mongolia"]
[BlackTeam "Czech Republic"]
[WhiteTeamCountry "MGL"]
[BlackTeamCountry "CZE"]
[TimeControl "40/5400+30:1800+30"]

{[%evp 9,98,33,31,13,26,22,27,26,27,-13,0,-2,0,0,7,-14,-25,-9,12,0,24,10,27,22,16,22,58,66,66,30,29,35,40,37,37,35,30,35,27,41,66,71,66,64,64,77,73,68,66,71,79,56,81,83,86,92,89,79,94,83,101,83,99,97,89,97,87,87,93,95,79,96,96,98,91,78,116,125,122,114,165,125,221,210,228,225,245,238,233,228,202]} 1. e4 c5 2. Nf3 d6 3. Bb5+ Nd7 4. O-O Ngf6 5. Re1 a6 6. Bd3 Qc7 7. c3 b5 8. Bc2 {White has an edge.} Bb7 9. d3 e6 10. Nbd2 {[%cal Bb1d2,Bd2f1,Bf1g3][%mdl 32]} Be7 11. Nf1 Rc8 12. Ng3 O-O 13. Bd2 Rfd8 14. Rc1 Qb8 15. d4 cxd4 16. cxd4 Qa8 17. Qe2 d5 18. e5 Ne4 19. Nxe4 (19. Ba5 {seems wilder.} Rf8 20. Qe3 Nxg3 21. fxg3 Qa7 22. Qd3) 19... dxe4 20. Bxe4 Bxe4 21. Qxe4 Qxe4 22. Rxe4 Rxc1+ 23. Bxc1 Rc8 24. Re1 Rc2 25. Rd1 $1 Nb6 26. Ne1 Rc4 27. b3 Rc8 28. Bd2 Nd5 29. Kf1 Ba3 30. Rb1 Kf8 31. Ke2 Ke8 32. Kd1 {Hoping for b4.} a5 33. Nc2 (33. Bxa5 b4 34. Nd3 (34. Kd2 $2 Ra8 $19) 34... Ra8 (34... Nc3+ $2 35. Kc2 $19) 35. Bxb4 Nxb4 $19 (35... Bxb4 $2 36. Nxb4 Nxb4 37. a4 $19)) 33... Be7 34. Rc1 ({Reject} 34. Bxa5 b4 35. a4 Ra8 (35... bxa3 36. Ra1 $14) 36. Bxb4 Nxb4 (36... Bxb4 37. Nxb4 Nxb4 38. Rc1 $15) 37. Nxb4 Bxb4 $15) 34... Ra8 35. Ne3 Nf4 36. Rc2 a4 {[#]} 37. g3 $1 axb3 38. axb3 Nh3 39. Ke2 Ng1+ 40. Kd3 Ra3 41. Rb2 Nf3 42. h4 f6 43. exf6 Bxf6 44. Bc3 Ra1 (44... Ra7 $16 {keeps fighting.}) 45. Ke4 Ng1 (45... b4 $16 46. Bxb4 Nxd4) 46. Rc2 $18 {White is clearly better.} Ra3 47. d5 Bxc3 48. Rxc3 exd5+ 49. Nxd5 Ra2 {Weighted Error Value: White=0.06 (flawless) /Black=0.12 (very precise) .  Mistake:       	---       	Black=2      Inaccurate:     	White=2     	Black=2      OK:         	White=19    	Black=14     Best:        	White=2     	---        Strong:       	White=2     	---} *

[Event "45th FIDE Olympiad 2024"]
[Site "Budapest"]
[Date "2024.09.12"]
[Round "2.77"]
[White "Murphy, Conor E"]
[Black "Rodshtein, Maxim"]
[Result "0-1"]
[ECO "B90"]
[WhiteElo "2453"]
[BlackElo "2600"]
[Annotator "TA"]
[PlyCount "102"]
[EventDate "2024.09.05"]
[EventType "team-tourn"]
[EventCountry "HUN"]
[SourceTitle "playchess.com"]
[Source "ChessBase"]
[SourceQuality "1"]
[WhiteTeam "Ireland"]
[BlackTeam "Israel"]
[WhiteTeamCountry "IRL"]
[BlackTeamCountry "ISR"]
[TimeControl "40/5400+30:1800+30"]

{[%evp 36,102,0,0,0,-35,-43,-58,-33,-43,-43,-34,-27,-37,-16,-55,-56,-50,-60,-67,-55,-94,-89,-87,-90,-84,-83,-106,-107,-111,-83,-88,-53,-60,-36,-90,-94,-110,-54,-47,-55,-116,0,-110,0,-159,-58,-87,0,-151,-143,-178,-107,-185,0,-506,-478,-542,-517,-664,-666,-743,-670,-1359,-1327,-1433,-1433,-1310,-1080]} 1. e4 c5 2. Nf3 d6 3. d4 cxd4 4. Nxd4 Nf6 5. Nc3 a6 6. Rg1 e5 {6...h5 is the hot move.} 7. Nb3 {B90: Sicilian Najdorf: Unusual White 6th moves, 6 Be3 Ng4 and 6 Be3 e5.} h5 8. Bg5 Be6 9. Qd3 Nbd7 10. O-O-O Be7 11. g3 $146 ({Predecessor:} 11. Kb1 Rc8 12. Bxf6 Nxf6 13. Nd5 Nxd5 14. exd5 Bd7 15. Be2 g6 16. g4 hxg4 17. Bxg4 {0-1 Danielyan,V (2332)-Hayrapetyan,H (2499) Yerevan Margaryan Memorial-A 2022 (6)}) 11... Rc8 12. f4 Qc7 13. Kb1 b5 14. Bxf6 Nxf6 15. Nd5 Nxd5 16. exd5 Bg4 17. Be2 Bf6 18. Rge1 Kf8 19. fxe5 Bxe5 20. Rd2 (20. Bxg4 $5 hxg4 21. Qd2 $17) 20... Bd7 21. Nd4 Re8 22. Bf3 g6 23. Nc6 Kg7 24. Rde2 Bf6 25. Rxe8 Rxe8 26. Rxe8 Bxe8 27. Qe3 Qc8 28. a3 Qh3 29. Qe2 Bd7 $1 30. Ka2 Qf5 31. Nb8 Bc8 32. Nc6 h4 33. g4 Qf4 34. h3 Qg3 35. Bg2 (35. Qf1 $15) 35... Bg5 $1 $17 36. c3 Be3 (36... f5 $17 {[%cal Rf5g4]} 37. Ne7 Bd7 38. gxf5 gxf5 (38... Bxf5 39. Nxf5+ gxf5 40. a4 $11)) 37. Bf1 $15 Qf4 38. Bg2 (38. Qg2 $15) 38... Bd7 (38... Qf2 $17 39. Qxf2 Bxf2) 39. Nb4 (39. Nb8 $11 {keeps the balance.} Bc8 40. Kb3) 39... Bc8 ({Black should play} 39... Qc4+ $1 $17 40. Qxc4 bxc4 41. Nxa6 Ba4) 40. Nd3 $2 (40. Nc6 $11) 40... Qg5 (40... Qg3 $1 $17 {And now ...f5 would win.} 41. Nb4 Qf2 42. Qxf2 Bxf2) 41. Nb4 Qf4 ({Black should try} 41... Bc5 $17 42. Qe1 Bxb4 43. axb4 Kf8) 42. Nd3 $2 {[#]} (42. Nc6 $11) 42... Qg3 $1 $17 43. Bf3 {[#]} Bg5 ({Better is} 43... Bb6 $1 $19 44. Bg2 Qe3 45. Qxe3 Bxe3) 44. Bg2 (44. Nf2 $17) 44... f5 $2 (44... Qe3 $19 45. Qxe3 Bxe3) 45. gxf5 $2 {[%mdl 8192]} (45. Qe8 $1 $11 {and White stays safe.}) 45... Bxf5 $19 46. Nb4 Bxh3 47. Bxh3 Qxh3 48. Nxa6 Qc8 49. Qg2 Bf6 50. Nb4 h3 51. Qf3 h2 0-1

[Event "45th FIDE Olympiad 2024"]
[Site "Budapest"]
[Date "2024.09.12"]
[Round "2.78"]
[White "Gorshtein, Ido"]
[Black "Kanyamarala, Tarun"]
[Result "0-1"]
[ECO "A20"]
[WhiteElo "2543"]
[BlackElo "2361"]
[Annotator "RC"]
[PlyCount "106"]
[EventDate "2024.09.05"]
[EventType "team-tourn"]
[EventCountry "HUN"]
[SourceTitle "playchess.com"]
[Source "ChessBase"]
[SourceQuality "1"]
[WhiteTeam "Israel"]
[BlackTeam "Ireland"]
[WhiteTeamCountry "ISR"]
[BlackTeamCountry "IRL"]
[TimeControl "40/5400+30:1800+30"]

1. c4 e5 2. d3 Nf6 3. Nf3 Nc6 4. a3 d5 5. cxd5 Nxd5 6. e4 Nf6 7. Be2 a5 8. O-O Bc5 9. Be3 Ba7 10. h3 O-O 11. Nc3 Be6 12. Rc1 h6 13. Bxa7 Rxa7 14. Qd2 Ra8 15. Bd1 Nh5 16. Ba4 Qf6 17. Bxc6 bxc6 18. Qe3 Nf4 19. Ne2 Rab8 20. Rc2 Rfd8 21. Nxf4 exf4 22. Qe2 Rb3 23. d4 Bc8 24. Rfc1 Rb6 25. Rc5 g5 26. Qc2 g4 27. hxg4 Bxg4 28. Ne5 Be6 29. Nxc6 Rxc6 30. Rxc6 Rxd4 31. Rd1 f3 32. Rxd4 Qxd4 33. gxf3 Bh3 34. Kh2 Bf1 35. Rxc7 Qe5+ 36. Kg1 Bh3 37. Rc8+ Kh7 38. Qc7 Qg7+ 39. Qg3 Bxc8 40. b4 a4 41. Kg2 Kg8 42. b5 Kf8 43. b6 Qg6 44. Qxg6 fxg6 45. f4 Ke7 46. Kg3 Kd6 47. Kh4 Kc6 48. f5 gxf5 49. exf5 Bxf5 50. Kh5 Kxb6 51. Kxh6 Kc5 52. Kg5 Bh7 53. f4 Kc4 0-1

[Event "45th FIDE Olympiad 2024"]
[Site "Budapest"]
[Date "2024.09.12"]
[Round "2.78"]
[White "Heim, Colin Peter"]
[Black "Lynch, Kemp"]
[Result "0-1"]
[ECO "B50"]
[WhiteElo "1751"]
[BlackElo "1944"]
[Annotator "NA"]
[PlyCount "134"]
[EventDate "2024.09.05"]
[EventType "team-tourn"]
[EventCountry "HUN"]
[SourceTitle "playchess.com"]
[Source "ChessBase"]
[SourceQuality "1"]
[WhiteTeam "US Virgin Islands"]
[BlackTeam "Barbados"]
[BlackTeamCountry "BAR"]
[TimeControl "40/5400+30:1800+30"]

1. e4 c5 2. Nf3 e6 3. Bc4 Nc6 4. d3 Nf6 5. Nc3 d6 6. d4 cxd4 7. Nxd4 Be7 8. Bb5 Bd7 9. O-O O-O 10. Re1 Rc8 11. Nf3 Qc7 12. a4 Rfd8 13. Qe2 a6 14. Bd3 Nb4 15. h3 Bc6 16. Be3 Nxd3 17. cxd3 d5 18. exd5 Nxd5 19. Nxd5 Rxd5 20. Nd4 Qd7 21. Nxc6 Rxc6 22. d4 Bf6 23. b4 Bxd4 24. Bxd4 Rxd4 25. b5 Rcd6 26. Qc2 Rd2 27. Qc5 b6 28. Qc4 R2d4 29. Qc3 a5 30. Rec1 h6 31. Qc8+ Qxc8 32. Rxc8+ Kh7 33. Kf1 Rb4 34. Ra2 Kg6 35. Ke2 Re4+ 36. Kf3 Rb4 37. Rc3 h5 38. Raa3 Kf6 39. Rcb3 Rdd4 40. Rxb4 axb4 41. Rb3 Ke5 42. Ke3 Kd5 43. a5 e5 44. a6 Kc4 45. Rb1 Kxb5 46. a7 Rd8 47. Rd1 Ra8 48. Rd7 b3 49. Kd2 Kb4 50. Rb7 b5 51. Kc1 Ka3 52. Rxb5 Rxa7 53. Rxe5 g6 54. Re2 Rc7+ 55. Kb1 Rd7 56. Kc1 Rd5 57. Re3 Rc5+ 58. Kd1 Ka2 59. Re7 b2 60. Ra7+ Kb3 61. Rb7+ Kc3 62. f3 Rc4 63. g3 Rb4 64. Rc7+ Kd3 65. Rd7+ Ke3 66. Re7+ Kxf3 67. Rxf7+ Kxg3 0-1

[Event "45th FIDE Olympiad 2024"]
[Site "Budapest"]
[Date "2024.09.12"]
[Round "2.79"]
[White "O'Gorman, Tom"]
[Black "Nabaty, Tamir"]
[Result "1-0"]
[ECO "C64"]
[WhiteElo "2353"]
[BlackElo "2630"]
[Annotator "TA"]
[PlyCount "81"]
[EventDate "2024.09.05"]
[EventType "team-tourn"]
[EventCountry "HUN"]
[SourceTitle "playchess.com"]
[Source "ChessBase"]
[SourceQuality "1"]
[WhiteTeam "Ireland"]
[BlackTeam "Israel"]
[WhiteTeamCountry "IRL"]
[BlackTeamCountry "ISR"]
[TimeControl "40/5400+30:1800+30"]

{[%evp 9,81,24,28,37,31,36,31,28,33,33,31,29,31,29,41,47,44,40,45,18,10,13,13,15,35,14,20,22,19,0,0,0,0,0,0,0,2,0,0,0,18,19,24,14,19,19,20,20,19,15,27,15,25,16,68,20,96,96,96,98,115,118,209,202,230,225,250,259,358,353,348,337,341,334]} 1. e4 e5 2. Nf3 Nc6 3. Bb5 Bc5 4. c3 Nf6 5. d4 exd4 6. e5 Nd5 7. O-O {[%cal Rc3d4]} Be7 8. cxd4 {[#] Threatens to win with Qb3. White is slightly better.} d6 9. Nc3 (9. exd6 $5 Qxd6 10. Nc3 $14) 9... Nxc3 10. bxc3 {Black must now prevent exd6.} O-O 11. h3 dxe5 12. Bxc6 bxc6 13. Nxe5 Bf6 14. Qa4 Bxe5 15. dxe5 {[%cal Of1d1]} Qd5 16. Be3 c5 17. Rfd1 Qxe5 18. Qc6 {[%csl LRa8,LRc5]} Be6 19. Qxc5 Qxc5 20. Bxc5 Rfb8 21. Rab1 a5 22. a3 h6 23. Be3 Kh7 24. Bf4 Rc8 25. Rb5 c6 26. Rc5 a4 27. Rd4 Ra6 28. f3 Re8 29. Kf2 Bd5 30. Rb4 Bb3 31. Rb7 Raa8 (31... Rd8 $11) 32. Rd7 {White has more active pieces.} (32. Rxc6 $2 Bd5 33. Rcc7 Bxb7 34. Rxb7 Rac8 $19) (32. c4 $14) 32... Re6 (32... Be6 $11 33. Rd4 Ra6) 33. Rxf7 $16 Rae8 {Hoping for ...Re2+.} 34. Rc7 Re2+ 35. Kg3 Bd5 (35... R8e6 $16 {might work better.}) 36. c4 $18 Rc2 {[#]} 37. Ra5 $1 Bxc4 38. Raa7 (38. Rxc6 Ree2 39. Bd6 Rxg2+ 40. Kf4 Rh2 $11) (38. Rxa4 Re6 $11) 38... Rg8 39. Rxc6 {[%csl Gf4][%cal Rc6h6]} (39. Rxa4 Bf1 $11) 39... Re8 40. Bxh6 ({Don't do} 40. Rxh6+ Kg8) 40... Re6 41. Rxe6 {Weighted Error Value: White=0.05 (flawless) /Black=0.14 (very precise) .  Mistake:       	White=1     	Black=3      Inaccurate:     	White=1     	Black=1      OK:         	White=16    	Black=14     Best:        	White=5     	Black=2      Strong:       	White=1     	---} (41. Rxg7+ Kxh6 42. Rgc7 Rxc6 43. Rxc6+ Kg5 $11) 1-0

[Event "45th FIDE Olympiad 2024"]
[Site "Budapest"]
[Date "2024.09.12"]
[Round "2.80"]
[White "Smirin, Ilia"]
[Black "Fitzsimons, David"]
[Result "1-0"]
[ECO "C10"]
[WhiteElo "2575"]
[BlackElo "2315"]
[Annotator "TA"]
[PlyCount "91"]
[EventDate "2024.09.05"]
[EventType "team-tourn"]
[EventCountry "HUN"]
[SourceTitle "playchess.com"]
[Source "ChessBase"]
[SourceQuality "1"]
[WhiteTeam "Israel"]
[BlackTeam "Ireland"]
[WhiteTeamCountry "ISR"]
[BlackTeamCountry "IRL"]
[TimeControl "40/5400+30:1800+30"]

{[%evp 12,91,39,25,22,20,22,18,12,0,0,12,17,22,25,26,36,22,25,28,27,24,31,25,51,51,53,53,70,61,88,91,116,113,188,172,251,281,276,275,275,285,264,264,272,264,286,273,309,318,349,365,370,387,461,427,451,410,512,506,551,508,486,501,721,718,716,630,787,746,807,781,703,700,928,909,882,818,1502,1502,1479,1429]} 1. e4 e6 2. d4 d5 3. Nc3 dxe4 4. Nxe4 Nd7 {[%cal Bb8d7,Bd7f6,Bf6d5][%mdl 32]} 5. Nf3 Ngf6 6. Nxf6+ Nxf6 7. Be3 Nd5 8. Bd2 c5 9. Ne5 {[#] Strongly threatening Qh5.} a6 {The position is equal.} 10. c3 (10. c4 {simplifies} Nf6 11. Bc3 cxd4 12. Qxd4 Qxd4 13. Bxd4 Nd7 14. Bd3) 10... Bd6 {[%cal Bf8d6,Bd6c5,Bc5b6][%mdl 32]} 11. Qa4+ Bd7 (11... Kf8 {with more complications.} 12. Bd3 b5 13. Qd1 cxd4 14. cxd4 f6) 12. Qxd7+ Qxd7 13. Nxd7 Kxd7 14. dxc5 Bxc5 15. g3 Rad8 16. Bg2 Kc8 17. Ke2 Nf6 {[%cal Oc5f2]} 18. Rhd1 Rd7 ({Don't do} 18... Ng4 19. f3 Nf2 20. Rdb1 $15) 19. b4 Bb6 20. c4 Bd4 {White leaves nothing to chance now.} 21. Rac1 b6 22. c5 bxc5 (22... Nd5 $16 {is a better defense.} 23. cxb6+ Kb7 24. Bxd5+ Rxd5 25. Rc7+ Kxb6 26. Rxf7 Rc8) 23. Bf4 $36 {[%mdl 2048] Black is under strong pressure. This pair of bishops is nice.} Nh5 {[#]} (23... Ng4 {keeps fighting.} 24. bxc5 Be5) 24. Rxd4 $1 {[%mdl 512]} Rxd4 25. Rxc5+ Kd7 26. Bc6+ Ke7 27. Rxh5 Rxb4 28. Ra5 Rb2+ 29. Kf1 Rb6 30. Bf3 Rc8 31. Be3 Rb2 32. Rxa6 Rcc2 33. a4 {[%cal Ba2a4,Ba4a5,Ba5a6][%mdl 32]} Ra2 34. a5 Ra1+ 35. Kg2 {White is clearly winning.} Ra3 36. Bd4 f6 37. Ra7+ Kf8 38. a6 Rc4 39. Be3 Rc8 40. Bb7 Rc2 41. Be4 {[%csl LRc2,LRh7]} Rc8 {Dodges Ra8} 42. Bxh7 Rc6 43. Ra8+ Kf7 44. a7 f5 45. Bg8+ Kf6 46. Rf8+ {Weighted Error Value: White=0.11 (very precise) /Black=0.26 (precise) .  Mistake:       	---       	Black=2      Inaccurate:     	---       	Black=3      OK:         	White=17    	Black=10     Best:        	White=3     	---        Brilliant:      	White=1     	---} 1-0

[Event "45th FIDE Olympiad 2024"]
[Site "Budapest"]
[Date "2024.09.12"]
[Round "2.80"]
[White "Hair, Justin M"]
[Black "Depradine, Lawrence"]
[Result "0-1"]
[ECO "A05"]
[WhiteElo "1725"]
[BlackElo "1782"]
[Annotator "NA"]
[PlyCount "146"]
[EventDate "2024.09.05"]
[EventType "team-tourn"]
[EventCountry "HUN"]
[SourceTitle "playchess.com"]
[Source "ChessBase"]
[SourceQuality "1"]
[WhiteTeam "US Virgin Islands"]
[BlackTeam "Barbados"]
[BlackTeamCountry "BAR"]
[TimeControl "40/5400+30:1800+30"]

1. Nf3 Nf6 2. g3 b6 3. Bg2 Bb7 4. d3 e6 5. e4 d6 6. O-O Be7 7. Be3 O-O 8. h3 c5 9. Nbd2 d5 10. e5 Nfd7 11. c3 Ba6 12. Ne1 Nxe5 13. Qc2 Nbc6 14. f4 Nd7 15. Qa4 Bb7 16. c4 Nd4 17. Bxd4 cxd4 18. cxd5 Bxd5 19. Bxd5 exd5 20. Nef3 Nc5 21. Qxd4 Qd7 22. Kg2 Qf5 23. Ne5 Bf6 24. Rf3 Ne6 25. Qxd5 Rad8 26. Qe4 Qxe4 27. Nxe4 Bxe5 28. fxe5 Nd4 29. Rf2 Nc6 30. Raf1 Nxe5 31. Ng5 h6 32. d4 hxg5 33. dxe5 Rd5 34. e6 f6 35. Rc1 Rd6 36. Re2 Re8 37. Rce1 g6 38. Kf3 f5 39. Re5 Kg7 40. g4 Kf6 41. gxf5 gxf5 42. R5e2 Rdxe6 43. Rxe6+ Rxe6 44. Rd1 a6 45. Rd8 Rc6 46. Rf8+ Kg6 47. Rg8+ Kh6 48. Rh8+ Kg7 49. Ra8 a5 50. Rd8 Rc2 51. Rd7+ Kf8 52. Rd5 g4+ 53. hxg4 fxg4+ 54. Kxg4 Rxb2 55. Rd6 Ke7 56. Rd3 Rxa2 57. Rb3 Ra4+ 58. Kf3 Rb4 59. Ra3 Kd6 60. Ke3 Kc5 61. Kd3 Rh4 62. Kc2 Rh2+ 63. Kb1 Kb4 64. Rg3 b5 65. Rg4+ Ka3 66. Rg3+ Ka4 67. Rg4+ b4 68. Kc1 Ka3 69. Kb1 a4 70. Rg3+ b3 71. Rc3 Rh1+ 72. Rc1 Rxc1+ 73. Kxc1 Ka2 0-1

[Event "45th FIDE Olympiad 2024"]
[Site "Budapest"]
[Date "2024.09.12"]
[Round "2.81"]
[White "Le, Quang Liem"]
[Black "Mohammad Fahad, Rahman"]
[Result "1-0"]
[ECO "A11"]
[WhiteElo "2741"]
[BlackElo "2419"]
[Annotator "TA"]
[PlyCount "67"]
[EventDate "2024.09.05"]
[EventType "team-tourn"]
[EventCountry "HUN"]
[SourceTitle "playchess.com"]
[Source "ChessBase"]
[SourceQuality "1"]
[WhiteTeam "Vietnam"]
[BlackTeam "Bangladesh"]
[WhiteTeamCountry "VIE"]
[BlackTeamCountry "BAN"]
[TimeControl "40/5400+30:1800+30"]

{[%evp 12,67,1,0,0,0,0,-50,-25,-30,-32,-26,-13,-49,-11,-5,16,16,48,0,0,14,7,12,11,0,96,93,128,131,122,126,122,117,422,342,331,160,553,542,482,475,499,445,693,667,1071,928,1061,1051,5827,8536,6399,2245,5722,5647,2240,1881]} 1. c4 e6 2. Nf3 d5 3. e3 Nf6 4. Nc3 c6 5. b3 Bd6 6. Bb2 O-O 7. Be2 b6 8. Qc2 Bb7 9. Rg1 ({White should play} 9. O-O $11) 9... e5 {Black is slightly better.} 10. g4 Na6 11. g5 Nd7 {[%cal Bf6d7,Bd7e5,Be5f3][%mdl 32]} 12. a3 {Prevents Nb4} Rc8 13. h4 {[%cal Bh2h4,Bh4h5,Bh5h6][%mdl 32]} e4 14. Nd4 $36 {[%mdl 2048] White has the initiative.} Ne5 15. f4 (15. O-O-O $14) 15... exf3 16. Nxf3 Nxf3+ 17. Bxf3 Qe7 18. h5 {[%cal Of3e4] Strongly threatening Be4!} Rfd8 {[#]} (18... Be5 $11 {keeps the balance.}) 19. Bg4 $1 $16 Rc7 20. Bf5 d4 (20... g6 21. hxg6 fxg6 22. Bxg6) 21. Ne4 Be5 22. O-O-O Kh8 $2 {[%mdl 8192] This costs Black the game.} (22... d3 $16 {is a better chance.} 23. Qb1 (23. Nf6+ Kh8 $15) 23... Nc5 24. Nxc5 Qxc5) 23. h6 g6 {[#]} 24. exd4 $1 Rxd4 (24... Bxd4 $16 25. Bxd4+ Rxd4) 25. Rge1 $18 {White is clearly winning.} ({Weaker is} 25. Bxd4 Bxd4 26. b4 (26. Bh3 $2 {is a self mate.} Qxa3+ 27. Kb1 Qa1#) 26... gxf5 $14) 25... c5 {[%cal Bc6c5,Bc5d4][%mdl 32]} 26. Nf6 Bf3 {Inhibits Ng4.} 27. Bg4 Bxd1 (27... Bc6 $142 28. Bxd4 cxd4) 28. Kxd1 Nb8 29. Bxd4 cxd4 {Black is weak on the light squares} 30. Qe4 Bxf6 31. gxf6 Qf8 32. Qf4 Rc5 33. Re7 {[%cal Oe7f7] White threatens Rxf7! and mate.} Nc6 {[#]} 34. Qe4 $1 {Weighted Error Value: White=0.11 (very precise) /Black=0.71.  Loses game:     	---       	Black=2      Mistake:       	White=2     	Black=2      Inaccurate:     	White=1     	Black=4      OK:         	White=7     	Black=7      Best:        	White=1     	---        Strong:       	White=2     	---} 1-0

[Event "45th FIDE Olympiad 2024"]
[Site "Budapest"]
[Date "2024.09.12"]
[Round "2.81"]
[White "Christopher, Art"]
[Black "Alrehaili, Ahmed Abdullah S"]
[Result "0-1"]
[ECO "C54"]
[WhiteElo "1779"]
[BlackElo "2117"]
[Annotator "NA"]
[PlyCount "62"]
[EventDate "2024.09.05"]
[EventType "team-tourn"]
[EventCountry "HUN"]
[SourceTitle "playchess.com"]
[Source "ChessBase"]
[SourceQuality "1"]
[WhiteTeam "British Virgin Islands"]
[BlackTeam "Saudi Arabia"]
[WhiteTeamCountry "IVB"]
[BlackTeamCountry "SAU"]
[TimeControl "40/5400+30:1800+30"]

1. e4 e5 2. Nf3 Nc6 3. Bc4 Nf6 4. O-O Bc5 5. d3 O-O 6. c3 d6 7. Bg5 Be6 8. b4 Bb6 9. Qb3 Re8 10. a4 a6 11. Na3 h6 12. Bh4 g5 13. Nxg5 hxg5 14. Bxg5 Kg7 15. Rad1 Qe7 16. Qb2 Rh8 17. d4 Rxh2 18. Bxe6 fxe6 19. Rd3 Rah8 20. Rh3 R2xh3 21. gxh3 Kf8 22. f4 exd4 23. Qg2 dxc3+ 24. Kh2 Qg7 25. e5 Nd5 26. f5 Qxe5+ 27. Qg3 Qe2+ 28. Qg2 Qxg2+ 29. Kxg2 Rg8 30. fxe6+ Ke8 31. h4 Ne3+ 0-1

[Event "45th FIDE Olympiad 2024"]
[Site "Budapest"]
[Date "2024.09.12"]
[Round "2.82"]
[White "Manon, Reja Neer"]
[Black "Le, Tuan Minh"]
[Result "0-1"]
[ECO "B45"]
[WhiteElo "2417"]
[BlackElo "2564"]
[Annotator "TA"]
[PlyCount "132"]
[EventDate "2024.09.05"]
[EventType "team-tourn"]
[EventCountry "HUN"]
[SourceTitle "playchess.com"]
[Source "ChessBase"]
[SourceQuality "1"]
[WhiteTeam "Bangladesh"]
[BlackTeam "Vietnam"]
[WhiteTeamCountry "BAN"]
[BlackTeamCountry "VIE"]
[TimeControl "40/5400+30:1800+30"]

{[%evp 33,132,53,51,23,50,17,92,82,80,64,71,64,97,106,109,121,147,154,132,152,150,158,170,161,164,165,164,117,120,50,27,37,32,39,42,45,54,77,99,93,223,213,215,207,207,127,143,109,140,127,145,124,205,204,210,167,175,-74,-66,-79,-82,-83,-77,-82,-78,-85,-75,-78,-32,-33,-36,-29,10,-91,-70,-230,-222,-311,-293,-1650,-1439,-4185,-4185,-4178,-4178,-4160,-4160,-4185,-4185,-4185,-4185,-4178,-4178,-4178,-4167,-4153,-4149,-4145,-4145,-4141,-4141]} 1. e4 c5 2. Nf3 e6 3. d4 cxd4 4. Nxd4 Nf6 5. Nc3 Nc6 6. Bf4 Bc5 7. Ndb5 O-O {B45: Sicilian Four Knights.} 8. Be2 a6 9. Bc7 Qe7 10. Bd6 Bxd6 11. Nxd6 Ne8 12. Nxe8 Rxe8 13. O-O Qb4 $146 ({Predecessor:} 13... b5 14. f4 d6 15. Kh1 Bb7 16. Bd3 Nb4 17. a3 Nxd3 18. cxd3 d5 19. Qh5 dxe4 20. dxe4 {0-1 Skorobogatykh,A (1970)-Mashinskaya,I (2215) Alushta op 2023 (2)}) 14. Rb1 b5 15. Qd2 Qd4 16. Rbd1 Qxd2 17. Rxd2 Ra7 18. a4 b4 19. Nd1 Na5 (19... d5 $11 {keeps the balance.}) 20. Ne3 $16 Kf8 21. Rfd1 Ke7 22. Rd6 b3 23. c3 Nb7 24. R6d4 (24. Rxa6 Rxa6 25. Bxa6 Nc5) 24... Nc5 25. Nc4 $1 Rc7 (25... Nxa4 $2 26. Nd6 Nc5 (26... Nxb2 $2 27. R1d2 $18) 27. Nxe8 Kxe8 28. Ra1) 26. Nd6 Rf8 27. Rc4 Kd8 28. e5 f6 29. f4 a5 30. Rd2 ({White should try} 30. exf6 $1 $18 gxf6 31. Rdd4) 30... Nb7 $16 {[#]} (30... Ba6 31. Rxc5 Rxc5 32. Bxa6 $18) 31. Nb5 (31. exf6 $1 $16 gxf6 32. Rcd4) 31... Rxc4 $14 32. Bxc4 fxe5 33. fxe5 Nc5 34. Nd4 Kc7 35. Nxb3 Rf4 36. Nxa5 Kb6 (36... Re4 $16 {was worth a try.}) 37. g3 $18 Re4 38. b4 Re1+ 39. Bf1 Nxa4 40. Kf2 Rc1 41. c4 Rb1 42. c5+ Ka7 {[#]} (42... Kc7 $16) 43. c6 $1 $18 Nb6 44. b5 Kb8 45. Nc4 $2 (45. Be2 $18) 45... Rxf1+ $1 $17 46. Kxf1 Nxc4 47. Rf2 Nxe5 48. Rf8 dxc6 49. bxc6 g6 50. Rg8 h5 (50... Kc7 $17 {Strongly threatening ...Ba6+.} 51. Rg7+ Kxc6 52. Rxh7 Kd5) 51. Ke2 $15 Kc7 52. Ke3 $1 Ng4+ (52... Nxc6 53. Rxg6 e5 54. Ke4 $15 (54. Rh6 Bg4 $11)) 53. Kd2 (53. Kd4 $1 $11 {remains equal.} Nf2 (53... Nxh2 54. Kc5 $18) 54. Re8) 53... Nxh2 (53... e5 {is interesting.} 54. h3 Nh2 55. Rxg6 Bxh3 56. Kc3 Ng4) 54. Rxg6 $2 (54. Kc3 $15) 54... Kxc6 $19 55. Ke3 (55. Kc3 $142) 55... Ng4+ $19 56. Kf4 $2 (56. Ke2) 56... Kd5 $19 57. Kg5 e5 58. Rg8 Be6 59. Rd8+ Kc5 60. Kxh5 e4 61. Kg5 e3 62. Rd1 Nf2 63. Ra1 Nd3 64. Kf6 Bh3 65. Ra2 Bg4 66. Kg5 e2 0-1

[Event "45th FIDE Olympiad 2024"]
[Site "Budapest"]
[Date "2024.09.12"]
[Round "2.82"]
[White "Al Thebaiti, Ahmed M"]
[Black "Samuel, Jhon"]
[Result "1-0"]
[ECO "B19"]
[WhiteElo "1993"]
[BlackElo "1545"]
[Annotator "NA"]
[PlyCount "69"]
[EventDate "2024.09.05"]
[EventType "team-tourn"]
[EventCountry "HUN"]
[SourceTitle "playchess.com"]
[Source "ChessBase"]
[SourceQuality "1"]
[WhiteTeam "Saudi Arabia"]
[BlackTeam "British Virgin Islands"]
[WhiteTeamCountry "SAU"]
[BlackTeamCountry "IVB"]
[TimeControl "40/5400+30:1800+30"]

1. e4 c6 2. d4 d5 3. Nc3 dxe4 4. Nxe4 Bf5 5. Ng3 Bg6 6. h4 h6 7. h5 Bh7 8. Nf3 Nd7 9. Bd3 Ngf6 10. Bxh7 Nxh7 11. Qd3 e6 12. Bd2 Be7 13. O-O-O O-O 14. Ne4 Nhf6 15. Nxf6+ Bxf6 16. g4 Bg5 17. Bxg5 hxg5 18. Qe3 Qf6 19. Nxg5 e5 20. Ne4 Qf4 21. Qxf4 exf4 22. Rde1 b6 23. c3 c5 24. dxc5 Nxc5 25. Nxc5 bxc5 26. Re4 Rfe8 27. Rhe1 Kf8 28. Rxe8+ Rxe8 29. Rxe8+ Kxe8 30. b4 c4 31. a4 Kd7 32. g5 f6 33. gxf6 gxf6 34. h6 Ke7 35. h7 1-0